[Event "Runavik Open 2018"]
[Site "Runavik"]
[Date "2018.11.12"]
[Round "1"]
[White "Petersen, Elias"]
[Black "Jacobsen, Heidrikur T."]
[Result "0-1"]
[ECO "B00"]
[WhiteElo "1045"]
[BlackElo "1935"]
[Annotator "NA RC"]
[PlyCount "64"]
[EventDate "2018.11.12"]
[EventType "swiss"]
[EventCountry "FAI"]
[SourceTitle "playchess.com"]
[Source "ChessBase"]
[SourceQuality "1"]
[TimeControl "40/5400+30:900+30"]

{[%evp 18,63,-204,-242,32767,-264,32767,-321,-264,-530,32767,-378,32767,32767,32767,-548,-512,-491,-454,-477,32767,-345,32767,32767,32767,32767,32767,-29993,-29994,-29995,-29994,32767,32767,32767,32767,32767,32767,-29992,32767,32767,-29993,-29993,-29994,-29995,-29996,-29996,-29995,-29999]} 1. e4 {[%emt 0:00:00]} d6 {[%emt 0:00:20]} 2. Bc4 {[%emt 0:01:15]} Nf6 {[%emt 0:00:12]} 3. Nc3 {[%emt 0:00:42]} g6 {[%emt 0:00:32]} 4. h3 {[%emt 0:01:09]} Bg7 {[%emt 0:00:14]} 5. Nf3 {[%emt 0:01:20]} O-O {[%emt 0:00:16] B06: Modern Defence} (5... c5 6. e5 dxe5 7. Nxe5 O-O 8. O-O Nbd7 9. Nf3 Nb6 10. Be2 Nbd5 11. Nxd5 Nxd5 12. d4 cxd4 13. Nxd4 {½-½ (52) Alburt,L (2530)-Seirawan,Y (2585) USA 1989}) 6. d3 {[%emt 0:00:55]} e5 {[%emt 0:01:41]} 7. Be3 {[%emt 0:02:23]} c6 {[%emt 0:03:34]} 8. Qd2 {[%emt 0:00:58]} d5 {[%emt 0:02:01]} 9. exd5 {[%emt 0:02:01]} cxd5 {[%emt 0:00:09]} 10. Nxe5 $146 {[%emt 0:00:53]} (10. Bc5 {might work better.} dxc4 11. Bxf8 Qxf8 12. Nxe5) ({Predecessor:} 10. Bb3 d4 11. Bh6 dxc3 12. bxc3 Nc6 13. h4 Bg4 14. Bxg7 Kxg7 15. Nh2 Na5 16. f3 Nxb3 17. axb3 Bd7 18. Nf1 Qc7 {0-1 (18) Dulian,K-Para,A Werynia 1997}) 10... dxc4 {[%emt 0:01:16]} 11. Nxc4 {[%emt 0:00:16]} Nc6 {[%emt 0:00:37]} 12. O-O-O {[%emt 0:01:06]} Be6 {[%emt 0:00:37]} 13. Qe2 $2 {[%emt 0:04:33]} (13. Bh6) 13... Nd4 {[%emt 0:04:59]} 14. Bxd4 {[%emt 0:01:22]} Qxd4 {[%emt 0:00:20]} 15. Rhe1 {[%emt 0:02:31]} a6 {[%emt 0:01:39]} 16. Ne4 $2 {[%emt 0:03:49]} (16. Qe3 Qh4 17. Kb1) 16... Nxe4 {[%emt 0:02:21]} 17. Qxe4 {[%emt 0:00:51]} Qf6 {[%emt 0:01:22]} 18. c3 {[%emt 0:01:45]} Bxc4 {[%emt 0:04:07]} 19. dxc4 {[%emt 0:00:53]} Qxf2 {[%emt 0:01:06]} 20. Qxb7 {[%emt 0:00:07]} Rab8 {[%emt 0:00:34]} 21. Rf1 {[%emt 0:00:40]} Qe3+ {[%emt 0:00:39]} 22. Kb1 {[%emt 0:00:25]} Rxb7 {[%emt 0:00:09]} 23. Rc1 {[%emt 0:00:50]} Qe2 {[%emt 0:00:35]} 24. b3 {[%emt 0:00:49]} Bxc3 {[%emt 0:00:17]} 25. Rxc3 {[%emt 0:00:28]} Qxf1+ {[%emt 0:00:07]} 26. Rc1 {[%emt 0:00:10]} Qxg2 {[%emt 0:00:10]} 27. Rc2 {[%emt 0:00:29]} Qxh3 {[%emt 0:00:10]} 28. Kb2 {[%emt 0:00:14]} Re8 {[%emt 0:00:10]} 29. c5 {[%emt 0:00:40]} Re3 {[%emt 0:00:24]} 30. c6 {[%emt 0:00:14] [#]} Rexb3+ $1 {[%emt 0:00:42]} 31. axb3 {[%emt 0:00:11]} Qxb3+ {[%emt 0:00:35]} 32. Ka1 {[%emt 0:00:17]} Qb1# {[%emt 0:00:12]} 0-1

[Event "Runavik Open 2018"]
[Site "Runavik"]
[Date "2018.11.13"]
[Round "2"]
[White "Schadd, Jan"]
[Black "Fjallheim, Benjamin Reinert"]
[Result "1-0"]
[ECO "A04"]
[WhiteElo "1842"]
[BlackElo "1340"]
[Annotator "NA RC"]
[PlyCount "86"]
[EventDate "2018.11.12"]
[EventType "swiss"]
[EventCountry "FAI"]
[SourceTitle "playchess.com"]
[Source "ChessBase"]
[SourceQuality "1"]
[TimeControl "40/5400+30:900+30"]

{[%evp 8,76,121,32767,32767,151,315,322,32767,285,305,301,280,32767,32767,32767,320,297,287,32767,302,304,319,264,267,283,279,32767,32767,32767,286,32767,32767,32767,276,32767,32767,32767,32767,32767,262,256,285,310,32767,32767,377,431,32767,32767,32767,450,32767,32767,32767,453,32767,32767,32767,32767,397,32767,495,570,32767,529,503,590,32767,667,570]} 1. Nf3 {[%emt 0:00:00]} Nc6 {[%emt 0:01:48]} 2. d4 {[%emt 0:00:00]} e6 {[%emt 0:01:00]} 3. e4 {[%emt 0:00:01]} g6 {[%emt 0:00:37]} 4. d5 {[%emt 0:03:05]} exd5 {[%emt 0:00:57]} 5. exd5 {[%emt 0:00:22]} Nce7 {[%emt 0:00:32]} 6. d6 {[%emt 0:03:18]} Nf5 {[%emt 0:02:24]} (6... cxd6 {is a better defense.} 7. Qd4 (7. Qxd6 Nc6 $14) 7... f6) 7. Qe2+ {[%emt 0:00:33]} Nge7 {[%emt 0:03:42]} 8. dxe7 {[%emt 0:00:41]} Qxe7 {[%emt 0:00:46]} 9. Bg5 {[%emt 0:02:46]} Qxe2+ {[%emt 0:00:44]} 10. Bxe2 {[%emt 0:00:07]} Bg7 {[%emt 0:00:29]} 11. Nc3 {[%emt 0:00:32]} c6 {[%emt 0:01:11]} 12. O-O-O {[%emt 0:08:27]} O-O {[%emt 0:00:53]} 13. g4 {[%emt 0:04:58]} Nh6 {[%emt 0:02:03]} 14. h3 {[%emt 0:01:21]} f6 {[%emt 0:00:37]} 15. Be3 {[%emt 0:01:31]} d5 {[%emt 0:00:40]} 16. Rhe1 {[%emt 0:03:02]} Nf7 {[%emt 0:01:17]} 17. Bc5 {[%emt 0:07:51]} Re8 {[%emt 0:00:46]} 18. Bf1 {[%emt 0:01:25]} Ne5 {[%emt 0:01:48]} 19. Nxe5 {[%emt 0:01:32]} fxe5 {[%emt 0:00:44]} 20. f4 {[%emt 0:01:31]} e4 {[%emt 0:00:42]} 21. Bd4 {[%emt 0:04:10]} Bh6 {[%emt 0:00:29]} 22. g5 {[%emt 0:00:33]} Bf8 {[%emt 0:00:12]} 23. Be5 {[%emt 0:03:04]} h5 {[%emt 0:00:51]} 24. Ne2 {[%emt 0:11:43]} Bc5 {[%emt 0:03:06]} 25. Nd4 {[%emt 0:02:17]} Bxd4 {[%emt 0:03:53]} 26. Rxd4 {[%emt 0:00:36]} b5 {[%emt 0:00:49]} 27. b3 {[%emt 0:01:19]} Be6 {[%emt 0:01:44]} 28. c4 {[%emt 0:03:25]} a6 {[%emt 0:00:39]} 29. cxd5 {[%emt 0:03:36]} cxd5 {[%emt 0:00:23]} 30. Kb2 {[%emt 0:00:37]} Rac8 {[%emt 0:00:49]} 31. Rc1 {[%emt 0:00:15]} Rxc1 {[%emt 0:00:23]} 32. Kxc1 {[%emt 0:00:08]} Rc8+ {[%emt 0:00:06]} 33. Kb2 {[%emt 0:03:08]} Kf7 {[%emt 0:00:51]} 34. a4 {[%emt 0:00:18]} Rc5 {[%emt 0:01:11]} 35. b4 {[%emt 0:02:48]} Rc8 {[%emt 0:01:33]} 36. axb5 {[%emt 0:00:41]} axb5 {[%emt 0:00:35]} 37. Bxb5 {[%emt 0:01:16]} Bxh3 {[%emt 0:00:46]} 38. Rxd5 {[%emt 0:01:22]} h4 $18 {[%emt 0:00:52]} 39. Bd7 {[%emt 0:02:53]} Bxd7 {[%emt 0:00:52]} 40. Rxd7+ {[%emt 0:00:00]} Ke6 {[%emt 0:00:00]} 41. Rh7 {[%emt 0:00:55]} e3 {[%emt 0:01:18]} 42. Rxh4 {[%emt 0:00:26]} Rc4 {[%emt 0:01:18]} 43. f5+ {[%emt 0:01:52]} Kd5 1-0

[Event "Runavik Open 2018"]
[Site "Runavik"]
[Date "2018.11.13"]
[Round "2"]
[White "Pinheiro Diamant, Jonatan"]
[Black "Jacobsen, Markus"]
[Result "1-0"]
[ECO "C00"]
[WhiteElo "1789"]
[BlackElo "1076"]
[Annotator "NA RC"]
[PlyCount "47"]
[EventDate "2018.11.12"]
[EventType "swiss"]
[EventCountry "FAI"]
[SourceTitle "playchess.com"]
[Source "ChessBase"]
[SourceQuality "1"]
[TimeControl "40/5400+30:900+30"]

1. e4 {[%emt 0:00:00]} e6 {[%emt 0:00:00]} 2. d4 {[%emt 0:00:00]} d5 {[%emt 0:00:07]} 3. Bd3 {[%emt 0:00:00]} c5 {[%emt 0:00:58]} 4. exd5 {[%emt 0:00:00]} exd5 {[%emt 0:01:41]} 5. Nf3 {[%emt 0:00:14]} Nc6 {[%emt 0:01:28]} 6. O-O {[%emt 0:01:27]} Nf6 {[%emt 0:01:15]} 7. Re1+ {[%emt 0:02:43]} Be6 {[%emt 0:01:24]} 8. Bf5 {[%emt 0:11:11]} Qd7 {[%emt 0:05:28]} 9. dxc5 {[%emt 0:05:59]} O-O-O {[%emt 0:01:37]} 10. Bxe6 {[%emt 0:03:23]} fxe6 {[%emt 0:00:26]} 11. Nd4 {[%emt 0:04:19]} Re8 {[%emt 0:03:51]} 12. Nxc6 {[%emt 0:02:11]} Qxc6 {[%emt 0:01:27]} 13. b4 {[%emt 0:00:50]} b6 {[%emt 0:01:42]} 14. cxb6 {[%emt 0:01:14]} Qxb6 {[%emt 0:01:11]} 15. a3 {[%emt 0:08:05]} Rd8 {[%emt 0:02:26]} 16. Qe2 {[%emt 0:02:57]} Ne4 {[%emt 0:06:13]} 17. Nd2 {[%emt 0:02:06]} Qd4 {[%emt 0:01:49]} 18. Qa6+ {[%emt 0:04:46]} Kb8 {[%emt 0:01:09]} 19. Nxe4 {[%emt 0:00:49]} dxe4 {[%emt 0:00:56]} 20. Be3 {[%emt 0:02:02]} Qd7 {[%emt 0:01:45]} 21. Bf4+ {[%emt 0:02:20]} Ka8 {[%emt 0:01:45]} 22. Qc4 {[%emt 0:02:59]} Rg8 {[%emt 0:02:18]} 23. Qxe4+ {[%emt 0:01:25]} Qb7 {[%emt 0:00:33]} 24. Qxe6 {[%emt 0:01:36]} 1-0

[Event "Runavik Open 2018"]
[Site "Runavik"]
[Date "2018.11.13"]
[Round "2"]
[White "Olsen, Kaj"]
[Black "Petersen, Elias"]
[Result "1-0"]
[ECO "C64"]
[WhiteElo "1718"]
[BlackElo "1045"]
[Annotator "NA RC"]
[PlyCount "55"]
[EventDate "2018.11.12"]
[EventType "swiss"]
[EventCountry "FAI"]
[SourceTitle "playchess.com"]
[Source "ChessBase"]
[SourceQuality "1"]
[TimeControl "40/5400+30:900+30"]

1. e4 {[%emt 0:01:47]} e5 {[%emt 0:00:00]} 2. Nf3 {[%emt 0:00:20]} Nc6 {[%emt 0:00:11]} 3. Bb5 {[%emt 0:02:50]} Bc5 {[%emt 0:00:41]} 4. O-O {[%emt 0:01:43]} d6 {[%emt 0:00:29]} 5. h3 {[%emt 0:00:33]} Bd7 {[%emt 0:00:29]} 6. c3 {[%emt 0:01:29]} a6 {[%emt 0:00:53]} 7. Ba4 {[%emt 0:00:51]} b5 {[%emt 0:03:33]} 8. Bb3 {[%emt 0:00:24]} h6 {[%emt 0:01:37]} 9. d4 {[%emt 0:03:24]} Bb6 {[%emt 0:01:13]} 10. Re1 {[%emt 0:06:33]} Nf6 {[%emt 0:00:44]} 11. Qd3 {[%emt 0:02:08]} O-O {[%emt 0:02:55]} 12. dxe5 {[%emt 0:03:43]} Nxe5 {[%emt 0:00:38]} 13. Nxe5 {[%emt 0:00:18]} dxe5 {[%emt 0:00:14]} 14. Qg3 {[%emt 0:00:26]} Nh5 {[%emt 0:00:55]} 15. Qxe5 {[%emt 0:02:35]} Nf6 {[%emt 0:00:29]} 16. Qg3 {[%emt 0:01:44]} Nh5 {[%emt 0:00:50]} 17. Qg6 {[%emt 0:02:32]} Kh8 {[%emt 0:07:43]} 18. Qxh5 {[%emt 0:00:54]} Qf6 {[%emt 0:00:37]} 19. Be3 {[%emt 0:01:13]} Bxe3 {[%emt 0:00:19]} 20. Rxe3 {[%emt 0:00:34]} a5 {[%emt 0:00:39]} 21. a3 {[%emt 0:00:33]} Kh7 {[%emt 0:01:09]} 22. Rf3 {[%emt 0:01:54]} Qe7 {[%emt 0:00:25]} 23. Rxf7 {[%emt 0:01:16]} Rxf7 {[%emt 0:00:14]} 24. Qxf7 {[%emt 0:00:14]} Qxf7 {[%emt 0:00:48]} 25. Bxf7 {[%emt 0:00:08]} Rf8 {[%emt 0:00:51]} 26. Bb3 {[%emt 0:00:26]} Re8 {[%emt 0:00:33]} 27. Nd2 {[%emt 0:00:09]} Bc6 {[%emt 0:00:18]} 28. f3 {[%emt 0:01:06]} 1-0

[Event "Runavik Open 2018"]
[Site "Runavik"]
[Date "2018.11.13"]
[Round "2"]
[White "Markensten, Max"]
[Black "Skaale, Janus"]
[Result "0-1"]
[ECO "D17"]
[WhiteElo "1660"]
[BlackElo "1839"]
[Annotator "NA RC"]
[PlyCount "78"]
[EventDate "2018.11.12"]
[EventType "swiss"]
[EventCountry "FAI"]
[SourceTitle "playchess.com"]
[Source "ChessBase"]
[SourceQuality "1"]
[TimeControl "40/5400+30:900+30"]

{[%evp 8,75,33,17,30,0,0,-2,32767,32767,-18,10,0,32767,32767,32767,32767,8,0,32767,12,32767,32767,32767,32767,32767,170,47,32767,70,32767,32767,124,32767,32767,62,74,32767,32767,257,189,0,268,0,0,-1098,-1464,-1247,-179,-662,-698,32767,-783,32767,-730,-913,-479,-452,-464,-466,-465,-509,-558,-468,-472,-474,-484,-444,-387,-652]} 1. d4 {[%emt 0:00:00]} d5 {[%emt 0:00:00]} 2. c4 {[%emt 0:00:00]} c6 {[%emt 0:00:00]} 3. Nf3 {[%emt 0:00:15]} Nf6 {[%emt 0:00:06]} 4. Nc3 {[%emt 0:00:17]} dxc4 {[%emt 0:00:08]} 5. a4 {[%emt 0:00:19]} Bf5 {[%emt 0:00:28]} 6. Ne5 {[%emt 0:00:28]} e6 {[%emt 0:01:07]} 7. f3 {[%emt 0:00:39]} Bb4 {[%emt 0:02:28]} 8. e4 {[%emt 0:00:19]} Bxe4 $1 {[%emt 0:00:46]} ({Doch nicht} 8... Nxe4 $6 9. fxe4 Qh4+ 10. Ke2 $16) 9. fxe4 {[%emt 0:00:10]} Nxe4 {[%emt 0:00:04]} 10. Bd2 {[%emt 0:00:17]} Qxd4 {[%emt 0:00:43]} 11. Nxe4 {[%emt 0:00:17]} Qxe4+ {[%emt 0:00:14]} 12. Qe2 {[%emt 0:00:14]} Bxd2+ {[%emt 0:00:30]} 13. Kxd2 {[%emt 0:00:10]} Qd5+ {[%emt 0:01:42] LiveBook: 477 Games} 14. Kc2 {[%emt 0:00:30]} b5 {[%emt 0:04:03]} 15. Rd1 {[%emt 0:03:10]} Qc5 {[%emt 0:05:17]} 16. axb5 {[%emt 0:00:40]} cxb5 {[%emt 0:01:25]} (16... O-O $16 {ist eine bessere Verteidigung.}) 17. Qe4 {[%emt 0:05:58]} (17. g3 $16 a6 18. Bh3 (18. Bg2 Ra7 $16)) 17... O-O {[%emt 0:03:26]} 18. Be2 {[%emt 0:05:45]} Na6 {[%emt 0:21:38]} 19. Nd7 {[%emt 0:02:05]} Qb4 {[%emt 0:01:46]} 20. Nxf8 {[%emt 0:01:48]} Rxf8 {[%emt 0:01:39]} 21. Ra1 {[%emt 0:18:55]} ({White should play} 21. Kb1 $16) 21... Nc5 {[%emt 0:13:39]} 22. Qe3 {[%emt 0:06:33]} Nb3 {[%emt 0:01:58]} 23. Rxa7 {[%emt 0:03:27]} e5 {[%emt 0:06:15]} 24. Qxe5 $2 {[%emt 0:12:17]} (24. Rd1 $18 Nd4+ 25. Rxd4 exd4 26. Qxd4) 24... Qd2+ {[%emt 0:01:26]} 25. Kb1 {[%emt 0:00:13]} Nd4 {[%emt 0:01:29]} 26. Rd1 $2 {[%emt 0:32:23]} (26. Bh5 $11 c3 27. Bxf7+ Kh8 28. bxc3 Qc2+ 29. Ka1 Qxc3+ 30. Kb1 Qc2+ 31. Ka1 Qc3+ 32. Ka2 Qd2+ 33. Ka1 Qc3+) 26... Qc2+ {[%emt 0:03:24]} 27. Ka1 {[%emt 0:00:38]} Nc6 $2 {[%emt 0:06:04]} (27... c3 {[%csl Gc3][%cal Rc2b2]} 28. Rb1 Nb3+ 29. Ka2 Nd2 30. Qxc3 Qxb1+ 31. Ka3 {[#]} b4+ $1 {[%mdl 512]} 32. Kxb4 Qe4+ 33. Ka5 Qxe2) 28. Qxb5 $2 {[%emt 0:01:20]} (28. Qe3 Nxa7 29. Rc1 Qa4+ 30. Qa3) 28... Qxe2 {[%emt 0:00:37]} 29. Rad7 {[%emt 0:00:45]} Ra8+ {[%emt 0:05:55]} 30. Kb1 {[%emt 0:00:49]} Qe4+ {[%emt 0:00:35]} 31. Kc1 {[%emt 0:02:40]} Ra1+ {[%emt 0:00:38]} 32. Kd2 {[%emt 0:00:06]} Rxd1+ {[%emt 0:00:05]} 33. Kxd1 {[%emt 0:00:12]} Qg4+ {[%emt 0:00:08]} 34. Kc2 {[%emt 0:00:33]} Qxd7 {[%emt 0:00:22]} 35. Qxc4 {[%emt 0:00:18]} g6 {[%emt 0:05:16]} 36. b4 {[%emt 0:00:45]} Qb7 {[%emt 0:05:21]} 37. Kc3 {[%emt 0:01:19]} Qb6 {[%emt 0:02:04]} 38. Qe4 $19 {[%emt 0:00:53]} (38. Qc5 $142 Qa6 39. b5 Qa1+ 40. Kd2 Qb2+ 41. Ke3 Qb3+ 42. Kd2 Qa2+ 43. Kd3) 38... Kg7 {[%emt 0:01:56]} 39. Kc4 {[%emt 0:00:26]} Qxb4+ {[%emt 0:00:08] Kd4} 0-1

[Event "Runavik Open 2018"]
[Site "Runavik"]
[Date "2018.11.13"]
[Round "2"]
[White "Nielsen, Suni I Horni"]
[Black "Berg, Margar M."]
[Result "1/2-1/2"]
[ECO "B96"]
[WhiteElo "1563"]
[BlackElo "1852"]
[Annotator "NA RC"]
[PlyCount "164"]
[EventDate "2018.11.12"]
[EventType "swiss"]
[EventCountry "FAI"]
[SourceTitle "playchess.com"]
[Source "ChessBase"]
[SourceQuality "1"]
[TimeControl "40/5400+30:900+30"]

{[%evp 8,156,32,24,36,28,7,6,32767,32767,32767,32767,32767,32767,32767,-28,-16,-31,32767,-72,32767,32767,32767,-155,-85,32767,32767,-65,-54,32767,32767,32767,32767,-82,32767,32767,222,252,32767,32767,-13,-12,32767,32767,32767,32767,-88,32767,32767,-166,-124,-235,-162,-192,0,-121,-105,-110,368,474,453,0,0,0,0,0,822,1237,32767,1374,12838,12840,12841,0,975,0,12840,32767,32767,4827,4133,29960,4132,12359,12842,600,790,625,723,988,1441,2883,4133,5538,5081,5093,12845,1865,800,1704,32767,12295,12847,29970,12845,0,38,30,30,0,32767,32767,32767,32767,32767,32767,32767,32767,32767,32767,32767,22,32767,32767,0,32767,32767,32767,32767,32767,32767,0,22,22,0,22,40,0,72,36,64,50,48,71,34,22,22,0,44,36,40]} 1. e4 {[%emt 0:00:07]} c5 {[%emt 0:00:00]} 2. Nf3 {[%emt 0:00:59]} d6 {[%emt 0:00:00]} 3. d4 {[%emt 0:00:23]} cxd4 {[%emt 0:00:00]} 4. Nxd4 {[%emt 0:00:17]} Nf6 {[%emt 0:00:10]} 5. Nc3 {[%emt 0:00:07]} a6 {[%emt 0:00:06]} 6. Bg5 {[%emt 0:01:17]} e6 {[%emt 0:00:13]} 7. f4 {[%emt 0:01:00] LiveBook: 9857 Games} Qc7 {[%emt 0:04:08]} 8. Bxf6 {[%emt 0:08:34]} gxf6 {[%emt 0:00:15]} 9. Qg4 {[%emt 0:06:36] B96: Sicilian Najdorf: 6 Bg5 e6 7 f4, lines other than 7...Qb6 and 7...Be7} (9. Be2 Nc6 10. Qd3 Nxd4 11. Qxd4 Qc5 12. Qd3 Bd7 13. O-O-O Rc8 14. Kb1 b5 15. a3 h5 16. f5 b4 17. axb4 Qxb4 18. fxe6 fxe6 {1-0 (35) Sutovsky,E (2650)-Najer,E (2679) Poikovsky 2017}) 9... Nc6 {[%emt 0:02:41]} 10. Nxc6 {[%emt 0:04:03]} bxc6 {[%emt 0:02:20]} 11. Bd3 $146 {[%emt 0:00:49]} ({Predecessor:} 11. O-O-O d5 12. Qh4 Bg7 13. Rd3 Rb8 14. Rg3 Rg8 15. Bd3 d4 16. Qxh7 Qxf4+ {½-½ (52) Hughes,D (2052)-Mueller,R (2113) IECC email 1998}) 11... Qb6 {[%emt 0:01:32]} 12. Rb1 {[%emt 0:02:25]} d5 {[%emt 0:04:22]} 13. exd5 {[%emt 0:01:53]} cxd5 {[%emt 0:06:28]} 14. Qe2 {[%emt 0:02:41]} Bb4 {[%emt 0:00:54]} 15. Rd1 {[%emt 0:02:19]} d4 {[%emt 0:02:40]} (15... Ba5 $142 16. Kf1 Bb7) 16. a3 {[%emt 0:00:12]} Ba5 {[%emt 0:00:18]} 17. b4 {[%emt 0:01:30]} Bxb4 {[%emt 0:00:12]} 18. axb4 {[%emt 0:00:10]} Qxb4 {[%emt 0:00:07]} 19. O-O {[%emt 0:03:17]} Qxc3 {[%emt 0:00:43]} 20. Rf3 {[%emt 0:01:37]} Qb4 {[%emt 0:02:45]} 21. Be4 {[%emt 0:01:49]} Rb8 $2 {[%emt 0:00:47] [#]} (21... Ra7 $11) 22. Rb3 $1 {[%emt 0:02:24]} Qd6 {[%emt 0:02:33]} 23. Rxb8 {[%emt 0:03:07]} Qxb8 {[%emt 0:00:13]} 24. Qc4 {[%emt 0:10:27]} e5 {[%emt 0:11:39]} 25. fxe5 {[%emt 0:05:29]} fxe5 {[%emt 0:03:06]} 26. Bc6+ {[%emt 0:00:53] [#]} Ke7 $1 {[%emt 0:00:29]} 27. Rf1 {[%emt 0:05:02]} f5 {[%emt 0:03:58]} 28. Re1 {[%emt 0:03:45]} (28. Bd5 $17 Bd7 29. Re1) 28... Qd6 {[%emt 0:00:35]} 29. Rb1 {[%emt 0:05:43]} (29. Bd5 $17 {might work better.}) 29... Be6 {[%emt 0:09:44]} 30. Qxa6 {[%emt 0:02:25] [#]} Qc5 $2 {[%emt 0:06:03]} (30... Rc8 $1 $19 31. Rb7+ Rc7 32. Rxc7+ Qxc7 33. Qa3+ Qd6 34. Qa7+ Kf6) 31. Rb7+ {[%emt 0:06:05]} (31. Rb5 $1 $11 {was the only way to keep the balance.} Qd6 32. Qb7+ Kf6 33. Bd5 Bxd5 34. Rxd5) 31... Kf6 {[%emt 0:00:23]} 32. Bd7 {[%emt 0:03:07]} Re8 $2 {[%emt 0:19:05]} (32... d3+ $1 $17 33. Kf1 Qc4 34. Qxc4 Bxc4 35. cxd3 Bxd3+ 36. Kf2 Ra8 37. Rb6+ Kg5) 33. Bxe8 {[%emt 0:02:24]} d3+ {[%emt 0:02:44]} 34. Kf1 $2 {[%emt 0:01:08]} ({Only move:} 34. Kh1 $18 Qf2 35. Qa7 (35. Rf7+ Kg5 $11) 35... Qxc2 36. Ba4 (36. Rxh7 Qc1+ 37. Qg1 d2 $18) 36... Qc1+ 37. Qg1 Qxg1+ 38. Kxg1) 34... dxc2 {[%emt 0:00:07]} 35. Rf7+ $1 {[%emt 0:00:36]} Kg5 {[%emt 0:00:17]} 36. Rg7+ {[%emt 0:00:18]} (36. h4+ Kf4 37. g3+ Kxg3 38. Qd3+ Kf4 39. Qd2+ Qe3 40. Qh2+ Kf3 41. Qg2+ Kf4 42. Qxc2 Bxf7 43. Bxf7 Kg3 (43... Qh3+ 44. Qg2 Qxh4 $11)) 36... Kf4 $2 {[%emt 0:00:29]} 37. g3+ {[%emt 0:00:32]} Ke4 {[%emt 0:01:36]} 38. Qe2+ $2 {[%emt 0:00:50]} Kd4 {[%emt 0:00:54]} 39. Qd2+ {[%emt 0:01:18]} Ke4 $1 {[%emt 0:01:52]} 40. Qe2+ {[%emt 0:00:00]} Kd5 $2 {[%emt 0:00:00]} 41. Qd2+ $2 {[%emt 0:01:06]} (41. Qd3+ $18 Qd4 42. Qxc2 Qc4+ 43. Qxc4+ Kxc4 44. Rxh7) 41... Ke4 {[%emt 0:03:59] [#]} 42. Bc6+ $1 $18 {[%emt 0:02:25]} Qxc6 {[%emt 0:01:07]} 43. Qg2+ {[%emt 0:00:08]} Kd4 {[%emt 0:00:08]} 44. Qxc6 {[%emt 0:00:04]} Bc4+ {[%emt 0:00:46]} 45. Qxc4+ {[%emt 0:02:39]} (45. Kf2 c1=Q 46. Rd7+ Kc3 47. Qxc4+ (47. Qf3+ Kb4 $18) 47... Kxc4 48. Rc7+ Kd5 49. Rxc1 h6) 45... Kxc4 {[%emt 0:00:08]} 46. Ke2 {[%emt 0:00:14]} c1=N+ {[%emt 0:00:38]} 47. Ke3 {[%emt 0:00:33]} Kd5 {[%emt 0:00:30]} 48. Rxh7 {[%emt 0:00:23]} Ke6 {[%emt 0:00:38]} 49. h4 {[%emt 0:00:54]} Nb3 {[%emt 0:00:09]} 50. h5 {[%emt 0:00:26]} Kf6 {[%emt 0:00:16]} 51. Rh6+ {[%emt 0:00:16]} (51. h6 $142 Kg5 52. Rb7 Kxh6 53. Rxb3 Kg7 54. Rb6 Kf7 55. Kd3 Kg7 56. Re6) 51... Kf7 {[%emt 0:01:17]} 52. Rb6 {[%emt 0:01:41]} Nd4 {[%emt 0:03:30]} 53. h6 {[%emt 0:00:51]} (53. Rb7+ $142 Kg8 54. Rc7) 53... Kg8 {[%emt 0:02:46]} 54. Rb7 {[%emt 0:01:08]} Kh8 {[%emt 0:00:47]} 55. Re7 {[%emt 0:00:14]} f4+ {[%emt 0:00:14]} 56. Kf2 $2 {[%emt 0:01:29]} ({White has to play} 56. Ke4 $18 fxg3 57. Rg7) 56... fxg3+ {[%emt 0:00:10]} 57. Kg2 {[%emt 0:00:00]} Nf5 $1 {[%emt 0:00:24]} 58. Rxe5 {[%emt 0:00:38]} Nxh6 {[%emt 0:00:09]} 59. Kxg3 {[%emt 0:00:11]} Kg7 {[%emt 0:00:12]} 60. Ra5 {[%emt 0:00:22]} Kf6 {[%emt 0:00:15]} 61. Kf4 {[%emt 0:00:07]} Nf7 {[%emt 0:00:37]} 62. Ra6+ {[%emt 0:00:22]} Ke7 {[%emt 0:00:10]} 63. Kf5 {[%emt 0:00:30]} Nd6+ {[%emt 0:00:09]} 64. Ke5 {[%emt 0:00:28]} Nf7+ {[%emt 0:00:13]} 65. Kd5 {[%emt 0:00:12]} Ng5 {[%emt 0:00:26]} 66. Rg6 {[%emt 0:00:22]} Nf7 {[%emt 0:00:12]} 67. Re6+ {[%emt 0:01:39]} Kd7 {[%emt 0:00:11]} 68. Ra6 {[%emt 0:00:43]} Ke7 {[%emt 0:00:06]} 69. Re6+ {[%emt 0:00:49]} Kd7 {[%emt 0:00:06]} 70. Re2 {[%emt 0:00:11]} Ng5 {[%emt 0:01:23]} 71. Ra2 {[%emt 0:00:30]} Ne6 {[%emt 0:00:14]} 72. Ra7+ {[%emt 0:01:01]} Nc7+ {[%emt 0:00:49]} 73. Kc5 {[%emt 0:00:12]} Kd8 {[%emt 0:01:23]} 74. Kc6 {[%emt 0:02:22]} Ne8 $1 {[%emt 0:00:25]} 75. Rf7 {[%emt 0:00:58]} Kc8 {[%emt 0:00:28]} 76. Rf8 {[%emt 0:00:13]} Kd8 {[%emt 0:00:10]} 77. Rf7 {[%emt 0:01:44]} Kc8 {[%emt 0:00:15]} 78. Rd7 {[%emt 0:01:12]} Nf6 $14 {[%emt 0:00:27]} 79. Ra7 {[%emt 0:00:52]} Kd8 {[%emt 0:00:16]} 80. Kd6 {[%emt 0:00:19]} Ne8+ {[%emt 0:00:09]} 81. Ke6 {[%emt 0:01:02]} Nc7+ {[%emt 0:00:07]} 82. Rxc7 {[%emt 0:05:10]} Kxc7 {[%emt 0:00:07]} 1/2-1/2